[Event "11th LCC Rapid 2019"]
[Site "London"]
[Date "2019.12.07"]
[Round "1.9"]
[White "Mihalik, Agoston"]
[Black "Jain, Gautam"]
[Result "1-0"]
[WhiteElo "2196"]
[BlackElo "1900"]
[PlyCount "69"]
[EventDate "2019.12.08"]
[EventType "swiss"]
[EventCountry "ENG"]
[TimeControl "15+10"]

1. e4 {[%emt 0:58:26]} d6 {[%emt 0:02:44]} 2. d4 {[%emt 0:00:04]} Nf6 {[%emt 0:00:02]} 3. Nc3 {[%emt 0:00:01]} Nbd7 {[%emt 0:00:01]} 4. Nf3 {[%emt 0:00:06]} e5 {[%emt 0:00:02]} 5. Bc4 {[%emt 0:00:01]} Be7 {[%emt 0:00:02]} 6. O-O {[%emt 0:00:08]} c6 {[%emt 0:00:02]} 7. a4 Qc7 {[%emt 0:00:04]} 8. h3 {[%emt 0:00:15]} h6 {[%emt 0:00:02]} 9. Re1 {[%emt 0:00:20]} Nf8 {[%emt 0:00:20]} 10. Nh4 {[%emt 0:00:32]} Nxe4 {[%emt 0:01:32]} 11. Rxe4 {[%emt 0:03:08]} d5 {[%emt 0:00:09]} 12. Bxd5 {[%emt 0:00:16]} cxd5 {[%emt 0:00:24]} 13. Rxe5 {[%emt 0:00:04]} Be6 {[%emt 0:01:30]} 14. Nf5 {[%emt 0:00:09]} Bf6 {[%emt 0:01:11]} 15. Nxd5 {[%emt 0:00:11]} Qd7 {[%emt 0:00:45]} 16. Nxf6+ {[%emt 0:00:18]} gxf6 17. Ng7+ {[%emt 0:00:34]} Kd8 {[%emt 0:00:03]} 18. Nxe6+ {[%emt 0:00:52]} fxe6 {[%emt 0:01:31]} 19. Re1 {[%emt 0:00:03]} Ng6 {[%emt 0:00:06]} 20. Qf3 {[%emt 0:00:05]} Ke7 {[%emt 0:00:12]} 21. c3 {[%emt 0:00:19]} Rhg8 {[%emt 0:00:30]} 22. Qh5 {[%emt 0:00:22]} Rg7 {[%emt 0:01:27]} 23. g3 {[%emt 0:01:12]} Rag8 {[%emt 0:00:07]} 24. Kh2 {[%emt 0:00:58]} Kd8 {[%emt 0:00:07]} 25. a5 {[%emt 0:00:15]} Ne7 {[%emt 0:03:05]} 26. Qf3 {[%emt 0:00:21]} Rg6 {[%emt 0:01:07]} 27. Bf4 {[%emt 0:00:11]} Nd5 {[%emt 0:00:19]} 28. c4 {[%emt 0:00:13]} Nxf4 {[%emt 0:00:09]} 29. Qxf4 Qc6 {[%emt 0:00:18]} 30. d5 {[%emt 0:00:38]} exd5 {[%emt 0:00:01]} 31. Rad1 Kc8 {[%emt 0:00:19]} 32. cxd5 {[%emt 0:00:15]} Qd7 {[%emt 0:01:05]} 33. Rc1+ {[%emt 0:00:03]} Kd8 34. Qb8+ {[%emt 0:00:02]} Qc8 {[%emt 0:00:01]} 35. Qxc8# 1-0

[Event "11th LCC Rapid 2019"]
[Site "London"]
[Date "2019.12.07"]
[Round "1.10"]
[White "Watson, Mikey J"]
[Black "Richardson, John R"]
[Result "0-1"]
[WhiteElo "1973"]
[BlackElo "2241"]
[PlyCount "76"]
[EventDate "2019.12.08"]
[EventType "swiss"]
[EventCountry "ENG"]
[TimeControl "15+10"]
[WhiteClock "0:05:54"]
[BlackClock "0:00:43"]

1. Nf3 {[%emt 0:00:00]} Nf6 {[%emt 0:00:00]} 2. c4 {[%emt 0:00:00]} e6 {[%emt 0:00:00]} 3. g3 {[%emt 0:00:00]} d5 {[%emt 0:00:00]} 4. d4 {[%emt 0:00:00]} Bb4+ {[%emt 0:00:00]} 5. Bd2 {[%emt 0:00:00]} Be7 {[%emt 0:00:00]} 6. Bg2 {[%emt 0:00:00]} O-O {[%emt 0:00:00]} 7. O-O {[%emt 0:00:00]} c6 {[%emt 0:00:00]} 8. Qc2 {[%emt 0:00:00]} a5 {[%emt 0:00:00]} 9. Ne5 {[%emt 0:00:00]} Nbd7 {[%emt 0:00:00]} 10. Nxd7 {[%emt 0:00:00]} Bxd7 {[%emt 0:00:00]} 11. c5 {[%emt 0:00:00]} b6 {[%emt 0:00:00]} 12. Bf4 {[%emt 0:00:00]} bxc5 {[%emt 0:00:00]} 13. dxc5 {[%emt 0:00:00]} Nh5 {[%emt 0:00:00]} 14. Bd2 {[%emt 0:00:00]} e5 {[%emt 0:00:00]} 15. e4 {[%emt 0:00:00]} d4 {[%emt 0:00:00]} 16. Na3 {[%emt 0:00:00]} Qc7 {[%emt 0:00:00]} 17. Rac1 {[%emt 0:00:00]} Be6 {[%emt 0:00:00]} 18. b3 {[%emt 0:00:00]} Rfd8 {[%emt 0:00:00]} 19. Qd3 {[%emt 0:00:00]} a4 {[%emt 0:00:00]} 20. Nc4 {[%emt 0:00:00]} axb3 {[%emt 0:00:00]} 21. axb3 {[%emt 0:00:00]} Bxc5 {[%emt 0:00:00]} 22. f4 {[%emt 0:00:00]} f6 {[%emt 0:00:00]} 23. Bf3 {[%emt 0:00:00]} Bf7 {[%emt 0:00:00]} 24. fxe5 {[%emt 0:00:00]} fxe5 {[%emt 0:00:00]} 25. Bxh5 {[%emt 0:00:00]} Bxh5 {[%emt 0:00:00]} 26. Rf5 {[%emt 0:00:00]} Be2 {[%emt 0:00:00]} 27. Qb1 {[%emt 0:00:00]} d3+ {[%emt 0:00:00]} 28. Kh1 {[%emt 0:00:00]} Rf8 {[%emt 0:00:00]} 29. Ne3 {[%emt 0:00:00]} Qb6 {[%emt 0:00:00]} 30. Ng2 {[%emt 0:00:15]} Rxf5 {[%emt 0:00:00]} 31. exf5 {[%emt 0:00:03]} e4 {[%emt 0:00:00]} 32. b4 {[%emt 0:00:23]} e3 {[%emt 0:00:00]} 33. Rxc5 {[%emt 0:03:33]} exd2 {[%emt 0:00:00]} 34. Ne3 {[%emt 0:00:12]} Qa7 {[%emt 0:00:00]} 35. Kg2 {[%emt 0:00:17]} Qe7 {[%emt 0:00:35]} 36. Kf2 {[%emt 0:00:54]} Re8 {[%emt 0:00:02]} 37. Qa2+ {[%emt 0:00:11]} Kh8 {[%emt 0:00:03]} 38. Qxd2 {[%emt 0:00:04]} Qe4 {[%emt 0:00:01]} 0-1

[Event "11th LCC Rapid 2019"]
[Site "London"]
[Date "2019.12.07"]
[Round "1.11"]
[White "Abrahams, Daniel"]
[Black "Leslie, Alex"]
[Result "1-0"]
[WhiteElo "2176"]
[BlackElo "1875"]
[PlyCount "87"]
[EventDate "2019.12.08"]
[EventType "swiss"]
[EventCountry "ENG"]
[TimeControl "15+10"]
[WhiteClock "0:01:52"]
[BlackClock "0:13:57"]

1. c4 {[%emt 0:00:00]} e5 {[%emt 0:00:00]} 2. Nc3 {[%emt 0:00:00]} Nf6 {[%emt 0:00:00]} 3. Nf3 {[%emt 0:00:00]} Nc6 {[%emt 0:00:00]} 4. g3 {[%emt 0:00:00]} Bb4 {[%emt 0:00:00]} 5. Bg2 {[%emt 0:00:00]} O-O {[%emt 0:00:00]} 6. O-O {[%emt 0:00:00]} d6 {[%emt 0:00:00]} 7. Nd5 {[%emt 0:00:00]} Nxd5 {[%emt 0:00:00]} 8. cxd5 {[%emt 0:00:00]} Ne7 {[%emt 0:00:00]} 9. d4 {[%emt 0:00:00]} exd4 {[%emt 0:00:00]} 10. Nxd4 {[%emt 0:00:00]} Ng6 {[%emt 0:00:00]} 11. a3 {[%emt 0:00:00]} Bc5 {[%emt 0:00:00]} 12. b4 {[%emt 0:00:00]} Bb6 {[%emt 0:00:00]} 13. Bb2 {[%emt 0:00:00]} Re8 {[%emt 0:00:00]} 14. Re1 {[%emt 0:00:00]} Ne5 {[%emt 0:00:00]} 15. Qc2 {[%emt 0:00:00]} Bd7 {[%emt 0:00:00]} 16. h3 {[%emt 0:00:00]} Rc8 {[%emt 0:00:00]} 17. Kh2 {[%emt 0:00:00]} c6 {[%emt 0:00:00]} 18. dxc6 {[%emt 0:00:00]} Nxc6 {[%emt 0:00:00]} 19. Nxc6 {[%emt 0:00:00]} Bxc6 {[%emt 0:00:00]} 20. Qf5 {[%emt 0:00:00]} Bxg2 {[%emt 0:00:00]} 21. Kxg2 {[%emt 0:00:00]} Qe7 {[%emt 0:00:00]} 22. Rad1 {[%emt 0:01:28]} Rc6 {[%emt 0:00:00]} 23. e3 {[%emt 0:00:00]} Qe4+ {[%emt 0:00:00]} 24. Qxe4 {[%emt 0:00:00]} Rxe4 {[%emt 0:00:00]} 25. Kf3 {[%emt 0:00:00]} Rec4 {[%emt 0:00:00]} 26. Re2 {[%emt 0:00:00]} f6 {[%emt 0:00:00]} 27. Red2 {[%emt 0:00:00]} Rc2 {[%emt 0:00:00]} 28. Bd4 {[%emt 0:00:00]} Rxd2 {[%emt 0:00:00]} 29. Rxd2 {[%emt 0:00:00]} Bxd4 {[%emt 0:00:00]} 30. Rxd4 {[%emt 0:00:00]} a6 {[%emt 0:00:00]} 31. Ke4 {[%emt 0:00:00]} Kf7 {[%emt 0:00:00]} 32. Kd5 {[%emt 0:00:00]} a5 {[%emt 0:02:35]} 33. bxa5 {[%emt 0:00:00]} Rc5+ {[%emt 0:00:44]} 34. Kxd6 {[%emt 0:00:00]} Rxa5 {[%emt 0:00:01]} 35. Rb4 {[%emt 0:00:00]} Rxa3 {[%emt 0:00:04]} 36. Rxb7+ {[%emt 0:00:00]} Kg6 {[%emt 0:00:01]} 37. Ke7 {[%emt 0:00:00]} Ra2 {[%emt 0:00:34]} 38. f4 {[%emt 0:00:00]} Ra3 {[%emt 0:00:14]} 39. Kf8 {[%emt 0:00:00]} Ra8+ {[%emt 0:00:04]} 40. Ke7 {[%emt 0:00:00]} Ra3 {[%emt 0:00:00]} 41. g4 {[%emt 0:00:00]} Rxe3+ {[%emt 0:00:57]} 42. Kf8 {[%emt 0:00:00]} Rxh3 {[%emt 0:00:05]} 43. Rxg7+ {[%emt 0:00:00]} Kh6 {[%emt 0:00:14]} 44. g5+ {[%emt 0:00:00]} 1-0

[Event "11th LCC Rapid 2019"]
[Site "London"]
[Date "2019.12.07"]
[Round "1.12"]
[White "Ignatovic, Ernest"]
[Black "Willow, Jonah B"]
[Result "0-1"]
[WhiteElo "1703"]
[BlackElo "2355"]
[PlyCount "84"]
[EventDate "2019.12.08"]
[EventType "swiss"]
[EventCountry "ENG"]
[TimeControl "15+10"]
[WhiteClock "0:02:54"]
[BlackClock "0:00:27"]

1. b3 {[%emt 0:00:00]} Nf6 {[%emt 0:00:00]} 2. Bb2 {[%emt 0:00:00]} g6 {[%emt 0:00:00]} 3. g3 {[%emt 0:00:00]} Bg7 {[%emt 0:00:00]} 4. Bg2 {[%emt 0:00:00]} O-O {[%emt 0:00:00]} 5. Nf3 {[%emt 0:00:00]} c5 {[%emt 0:00:00]} 6. c4 {[%emt 0:00:00]} Nc6 {[%emt 0:00:00]} 7. O-O {[%emt 0:00:00]} d6 {[%emt 0:00:00]} 8. d4 {[%emt 0:00:00]} cxd4 {[%emt 0:00:00]} 9. Nxd4 {[%emt 0:00:00]} Bd7 {[%emt 0:00:00]} 10. Re1 {[%emt 0:00:00]} a6 {[%emt 0:00:00]} 11. e4 {[%emt 0:00:00]} Rc8 {[%emt 0:00:00]} 12. Nc3 {[%emt 0:00:00]} Qa5 {[%emt 0:00:00]} 13. Nxc6 {[%emt 0:00:00]} Bxc6 {[%emt 0:00:00]} 14. Nd5 {[%emt 0:00:00]} Nxd5 {[%emt 0:00:00]} 15. Bxg7 {[%emt 0:00:00]} Nc3 {[%emt 0:00:00]} 16. Bxc3 {[%emt 0:00:00]} Qxc3 {[%emt 0:00:00]} 17. Rc1 {[%emt 0:00:00]} Qa5 {[%emt 0:00:00]} 18. Rc2 {[%emt 0:00:00]} b5 {[%emt 0:00:00]} 19. e5 {[%emt 0:00:00]} Bxg2 {[%emt 0:00:00]} 20. Kxg2 {[%emt 0:00:00]} bxc4 {[%emt 0:00:00]} 21. exd6 {[%emt 0:00:00]} exd6 {[%emt 0:00:50]} 22. bxc4 {[%emt 0:00:00]} Qa4 {[%emt 0:00:00]} 23. Rd2 {[%emt 0:00:18]} Qxc4 {[%emt 0:00:00]} 24. Rxd6 {[%emt 0:00:36]} Qxa2 {[%emt 0:00:00]} 25. Qd4 {[%emt 0:00:05]} Rc2 {[%emt 0:00:00]} 26. h4 {[%emt 0:00:42]} Re2 {[%emt 0:00:00]} 27. Rd1 {[%emt 0:01:09]} h5 {[%emt 0:00:00]} 28. Qf6 {[%emt 0:00:09]} Qc2 {[%emt 0:01:01]} 29. Rd8 {[%emt 0:00:26]} Ree8 {[%emt 0:00:04]} 30. Rxe8 {[%emt 0:00:20]} Rxe8 {[%emt 0:00:05]} 31. Rd7 {[%emt 0:00:21]} Qc4 {[%emt 0:00:17]} 32. Rd8 {[%emt 0:00:07]} Rxd8 {[%emt 0:00:41]} 33. Qxd8+ {[%emt 0:00:01]} Kg7 {[%emt 0:00:01]} 34. Qg5 {[%emt 0:00:14]} Qb5 {[%emt 0:00:08]} 35. Qd2 {[%emt 0:00:33]} Qe5 {[%emt 0:00:10]} 36. f4 {[%emt 0:00:21]} Qc5 {[%emt 0:00:33]} 37. Kf3 {[%emt 0:00:15]} a5 {[%emt 0:00:06]} 38. Qb2+ {[%emt 0:00:04]} Kh7 {[%emt 0:00:03]} 39. g4 {[%emt 0:00:08]} Qd5+ {[%emt 0:00:10]} 40. Ke3 {[%emt 0:00:29]} hxg4 {[%emt 0:00:05]} 41. Qf6 {[%emt 0:00:08]} Qe6+ {[%emt 0:00:05]} 42. Qe5 {[%emt 0:00:22]} a4 {[%emt 0:00:02]} 0-1

[Event "11th LCC Rapid 2019"]
[Site "London"]
[Date "2019.12.07"]
[Round "1.13"]
[White "Salem, Ihab"]
[Black "Rosario, Paulo Rbd"]
[Result "1-0"]
[WhiteElo "2071"]
[BlackElo "1767"]
[PlyCount "63"]
[EventDate "2019.12.08"]
[EventType "swiss"]
[EventCountry "ENG"]
[TimeControl "15+10"]

1. e4 {[%emt 0:04:54]} d6 {[%emt 0:00:03]} 2. d4 {[%emt 0:00:03]} Nf6 {[%emt 0:00:03]} 3. Nc3 {[%emt 0:00:03]} e5 {[%emt 0:00:02]} 4. Nf3 {[%emt 0:00:29]} exd4 {[%emt 0:00:11]} 5. Nxd4 {[%emt 0:00:11]} Be7 {[%emt 0:00:34]} 6. Bd3 {[%emt 0:01:08]} c6 {[%emt 0:00:14]} 7. O-O {[%emt 0:00:25]} Bg4 {[%emt 0:00:15]} 8. f3 {[%emt 0:00:14]} Bh5 {[%emt 0:02:16]} 9. Nf5 {[%emt 0:02:06]} O-O {[%emt 0:00:46]} 10. Bf4 {[%emt 0:00:20]} Re8 {[%emt 0:01:07]} 11. Qe1 {[%emt 0:01:13]} Bf8 {[%emt 0:01:40]} 12. Rd1 {[%emt 0:02:14]} Bg6 {[%emt 0:00:22]} 13. Ne3 {[%emt 0:00:57]} Nh5 {[%emt 0:00:59]} 14. Bg3 {[%emt 0:00:23]} Nxg3 {[%emt 0:00:02]} 15. Qxg3 {[%emt 0:00:03]} Qb6 {[%emt 0:00:08]} 16. Qf4 {[%emt 0:02:42]} d5 {[%emt 0:03:33]} 17. Na4 {[%emt 0:01:16]} Qa5 {[%emt 0:01:47]} 18. exd5 {[%emt 0:00:26]} cxd5 {[%emt 0:01:53]} 19. Bxg6 {[%emt 0:00:06]} hxg6 {[%emt 0:00:08]} 20. Rxd5 {[%emt 0:00:07]} Qa6 {[%emt 0:00:32]} 21. Ng4 {[%emt 0:02:12]} Nc6 {[%emt 0:00:21]} 22. Rd7 {[%emt 0:00:11]} Re7 {[%emt 0:00:55]} 23. Rfd1 {[%emt 0:00:20]} Rae8 {[%emt 0:00:18]} 24. Rxe7 {[%emt 0:00:08]} Rxe7 {[%emt 0:00:14]} 25. Nc3 {[%emt 0:00:25]} Qb6+ {[%emt 0:00:13]} 26. Kh1 Qxb2 {[%emt 0:00:14]} 27. Nd5 {[%emt 0:00:34]} Re2 {[%emt 0:00:29]} 28. Nge3 {[%emt 0:00:02]} Qxa2 {[%emt 0:00:10]} 29. h4 {[%emt 0:00:05]} a5 {[%emt 0:00:16]} 30. Qc7 {[%emt 0:00:08]} Qb2 {[%emt 0:00:11]} 31. Qc8 {[%emt 0:00:42]} Qc3 {[%emt 0:00:06]} 32. Nxc3 {[%emt 0:00:16]} 1-0

[Event "11th LCC Rapid 2019"]
[Site "London"]
[Date "2019.12.07"]
[Round "1.14"]
[White "Thatte, Nishchal"]
[Black "Lucchi, Lorenzo"]
[Result "0-1"]
[WhiteElo "1723"]
[BlackElo "2089"]
[PlyCount "64"]
[EventDate "2019.12.08"]
[EventType "swiss"]
[EventCountry "ENG"]
[TimeControl "15+10"]

1. e4 {[%emt 0:45:45]} c5 {[%emt 0:00:02]} 2. c3 e5 {[%emt 0:00:03]} 3. Nf3 {[%emt 0:00:03]} Nc6 {[%emt 0:00:02]} 4. Bb5 {[%emt 0:00:07]} Qc7 {[%emt 0:00:01]} 5. O-O {[%emt 0:00:19]} Nf6 {[%emt 0:00:02]} 6. d3 {[%emt 0:00:07]} Be7 {[%emt 0:00:03]} 7. Nbd2 {[%emt 0:00:18]} O-O {[%emt 0:00:11]} 8. Re1 {[%emt 0:00:02]} a6 {[%emt 0:00:38]} 9. Ba4 {[%emt 0:00:03]} b5 {[%emt 0:00:06]} 10. Bb3 {[%emt 0:00:33]} Bb7 {[%emt 0:00:13]} 11. Nf1 {[%emt 0:00:08]} Na5 {[%emt 0:00:21]} 12. Bc2 {[%emt 0:00:16]} d5 {[%emt 0:00:18]} 13. exd5 {[%emt 0:00:17]} Bxd5 {[%emt 0:00:09]} 14. Nxe5 {[%emt 0:00:25]} Rfe8 {[%emt 0:00:08]} 15. Bg5 {[%emt 0:01:06]} Rad8 {[%emt 0:00:14]} 16. Bh4 {[%emt 0:00:29]} Nc6 {[%emt 0:00:27]} 17. Bg3 {[%emt 0:00:16]} Qb7 {[%emt 0:00:52]} 18. Ne3 {[%emt 0:01:55]} Be6 {[%emt 0:00:02]} 19. Qf3 {[%emt 0:00:22]} Nd5 {[%emt 0:00:18]} 20. Bb3 {[%emt 0:02:26]} Nxe5 {[%emt 0:01:38]} 21. Bxe5 {[%emt 0:00:32]} Qd7 {[%emt 0:00:19]} 22. Nxd5 {[%emt 0:01:08]} Bxd5 {[%emt 0:00:02]} 23. Bxd5 {[%emt 0:00:01]} Qxd5 {[%emt 0:00:02]} 24. Qxd5 {[%emt 0:00:02]} Rxd5 {[%emt 0:00:02]} 25. Rad1 {[%emt 0:00:40]} Bf8 {[%emt 0:00:02]} 26. d4 {[%emt 0:00:58]} f6 {[%emt 0:00:01]} 27. Bf4 {[%emt 0:00:19]} Rxe1+ {[%emt 0:00:20]} 28. Rxe1 {[%emt 0:00:01]} cxd4 {[%emt 0:00:18]} 29. Rd1 {[%emt 0:00:44]} g5 {[%emt 0:00:24]} 30. Bb8 {[%emt 0:01:00]} dxc3 {[%emt 0:00:14]} 31. Rc1 {[%emt 0:00:30]} cxb2 {[%emt 0:00:10]} 32. Rb1 {[%emt 0:00:02]} Rc5 {[%emt 0:00:06]} 0-1

[Event "11th LCC Rapid 2019"]
[Site "London"]
[Date "2019.12.07"]
[Round "1.15"]
[White "Brozel, Sacha"]
[Black "Rushbrooke, Tibo"]
[Result "1-0"]
[WhiteElo "2188"]
[BlackElo "1730"]
[PlyCount "81"]
[EventDate "2019.12.08"]
[EventType "swiss"]
[EventCountry "ENG"]
[TimeControl "15+10"]
[WhiteClock "0:00:12"]
[BlackClock "0:00:34"]

1. c4 {[%emt 0:00:00]} f5 {[%emt 0:00:00]} 2. g3 {[%emt 0:00:00]} Nf6 {[%emt 0:00:00]} 3. Nc3 {[%emt 0:00:00]} d6 {[%emt 0:00:00]} 4. Bg2 {[%emt 0:00:00]} e5 {[%emt 0:00:00]} 5. d3 {[%emt 0:00:00]} Be7 {[%emt 0:00:00]} 6. e4 {[%emt 0:00:00]} Nc6 {[%emt 0:00:00]} 7. Nge2 {[%emt 0:00:00]} O-O {[%emt 0:00:00]} 8. O-O {[%emt 0:00:00]} fxe4 {[%emt 0:00:00]} 9. dxe4 {[%emt 0:00:00]} Bg4 {[%emt 0:00:00]} 10. f3 {[%emt 0:00:00]} Be6 {[%emt 0:00:00]} 11. Nd5 {[%emt 0:00:00]} Qd7 {[%emt 0:00:00]} 12. Be3 {[%emt 0:00:00]} Kh8 {[%emt 0:00:00]} 13. Qd2 {[%emt 0:00:00]} Nd8 {[%emt 0:00:00]} 14. Rad1 {[%emt 0:00:00]} Nf7 {[%emt 0:00:00]} 15. Nec3 {[%emt 0:00:00]} c6 {[%emt 0:00:00]} 16. Nxe7 {[%emt 0:00:00]} Qxe7 {[%emt 0:00:00]} 17. b3 {[%emt 0:00:00]} a6 {[%emt 0:00:15]} 18. g4 {[%emt 0:00:16]} b5 {[%emt 0:01:09]} 19. g5 {[%emt 0:00:17]} Nh5 {[%emt 0:00:14]} 20. c5 {[%emt 0:00:57]} dxc5 {[%emt 0:01:14]} 21. Qf2 {[%emt 0:00:01]} Nxg5 {[%emt 0:00:39]} 22. Bxc5 {[%emt 0:00:05]} Qf6 {[%emt 0:00:02]} 23. Bxf8 {[%emt 0:00:54]} Rxf8 {[%emt 0:00:02]} 24. Rd6 {[%emt 0:00:09]} Nf4 {[%emt 0:00:13]} 25. Kh1 {[%emt 0:00:32]} Qe7 {[%emt 0:00:23]} 26. Rfd1 {[%emt 0:00:21]} Ngh3 {[%emt 0:00:02]} 27. Qg3 {[%emt 0:00:22]} Nxg2 {[%emt 0:00:05]} 28. Qxg2 {[%emt 0:00:12]} Nf4 {[%emt 0:00:01]} 29. Qg3 {[%emt 0:00:11]} Bh3 {[%emt 0:00:06]} 30. R6d2 {[%emt 0:00:07]} Qb4 {[%emt 0:00:38]} 31. Ne2 {[%emt 0:00:38]} Bg2+ {[%emt 0:00:04]} 32. Kg1 {[%emt 0:00:01]} Nxe2+ {[%emt 0:00:04]} 33. Rxe2 {[%emt 0:00:03]} Bxf3 {[%emt 0:00:01]} 34. Rd7 {[%emt 0:00:14]} Qc5+ {[%emt 0:00:09]} 35. Rf2 {[%emt 0:00:13]} Qc1+ {[%emt 0:00:01]} 36. Rf1 {[%emt 0:00:02]} Qc5+ {[%emt 0:00:01]} 37. Qf2 {[%emt 0:00:24]} Qb4 {[%emt 0:00:44]} 38. Qxf3 {[%emt 0:00:13]} Qc5+ {[%emt 0:00:14]} 39. Kh1 {[%emt 0:00:01]} Rg8 {[%emt 0:00:12]} 40. Qf7 {[%emt 0:00:10]} Qb4 {[%emt 0:00:10]} 41. Qxg8+ {[%emt 0:00:08]} 1-0

[Event "11th LCC Rapid 2019"]
[Site "London"]
[Date "2019.12.07"]
[Round "1.17"]
[White "Johnson, Daniel"]
[Black "Kuzhelev, Timur"]
[Result "1/2-1/2"]
[WhiteElo "2144"]
[BlackElo "1745"]
[PlyCount "78"]
[EventDate "2019.12.08"]
[EventType "swiss"]
[EventCountry "ENG"]
[TimeControl "15+10"]
[WhiteClock "0:12:47"]
[BlackClock "0:01:31"]

1. d4 {[%emt 0:00:00]} Nf6 {[%emt 0:00:00]} 2. c4 {[%emt 0:00:00]} g6 {[%emt 0:00:00]} 3. Nc3 {[%emt 0:00:00]} Bg7 {[%emt 0:00:00]} 4. e4 {[%emt 0:00:00]} d6 {[%emt 0:00:00]} 5. f3 {[%emt 0:00:00]} O-O {[%emt 0:00:00]} 6. Nge2 {[%emt 0:00:00]} c5 {[%emt 0:00:00]} 7. d5 {[%emt 0:00:00]} a6 {[%emt 0:00:00]} 8. a4 {[%emt 0:00:00]} a5 {[%emt 0:00:00]} 9. Bg5 {[%emt 0:00:00]} Na6 {[%emt 0:00:00]} 10. Qd2 {[%emt 0:00:00]} Nb4 {[%emt 0:00:00]} 11. Nc1 {[%emt 0:00:00]} h6 {[%emt 0:00:00]} 12. Be3 {[%emt 0:00:00]} Kh7 {[%emt 0:00:00]} 13. Be2 {[%emt 0:00:00]} Bd7 {[%emt 0:00:00]} 14. O-O {[%emt 0:00:00]} b6 {[%emt 0:00:00]} 15. h3 {[%emt 0:00:00]} Qc7 {[%emt 0:00:00]} 16. f4 {[%emt 0:00:00]} Rae8 {[%emt 0:00:00]} 17. Nd3 {[%emt 0:00:00]} e5 {[%emt 0:00:00]} 18. fxe5 {[%emt 0:00:00]} dxe5 {[%emt 0:00:00]} 19. Rf2 {[%emt 0:00:00]} Qd6 {[%emt 0:00:00]} 20. Raf1 {[%emt 0:00:00]} Re7 {[%emt 0:00:00]} 21. Bf3 {[%emt 0:00:00]} Ne8 {[%emt 0:00:00]} 22. Nxb4 {[%emt 0:00:00]} axb4 {[%emt 0:00:00]} 23. Nb5 {[%emt 0:00:00]} Bxb5 {[%emt 0:00:00]} 24. cxb5 {[%emt 0:00:00]} f5 {[%emt 0:00:00]} 25. Re2 {[%emt 0:00:37]} f4 {[%emt 0:00:00]} 26. Bf2 {[%emt 0:00:02]} Nf6 {[%emt 0:00:00]} 27. Rc1 {[%emt 0:00:34]} Ra7 {[%emt 0:00:00]} 28. b3 {[%emt 0:00:07]} g5 {[%emt 0:00:00]} 29. Ree1 {[%emt 0:01:07]} h5 {[%emt 0:00:00]} 30. Qe2 {[%emt 0:00:31]} Kg6 {[%emt 0:00:00]} 31. Rf1 {[%emt 0:00:05]} Qd7 {[%emt 0:00:00]} 32. g4 {[%emt 0:00:28]} h4 {[%emt 0:00:00]} 33. Ra1 {[%emt 0:00:13]} Rfa8 {[%emt 0:00:00]} 34. Rfc1 {[%emt 0:00:06]} Bf8 {[%emt 0:00:00]} 35. Ra2 {[%emt 0:00:14]} Bd6 {[%emt 0:00:00]} 36. Qc2 {[%emt 0:00:02]} Ne8 {[%emt 0:00:00]} 37. Rca1 {[%emt 0:00:21]} Ra5 {[%emt 0:00:00]} 38. Be2 {[%emt 0:00:39]} Qc7 {[%emt 0:00:00]} 39. Kg2 {[%emt 0:00:08]} Nf6 {[%emt 0:00:00]} 1/2-1/2

[Event "11th LCC Rapid 2019"]
[Site "London"]
[Date "2019.12.07"]
[Round "1.18"]
[White "Nayak, Raghav"]
[Black "Walker, Samuel A"]
[Result "0-1"]
[WhiteElo "1914"]
[BlackElo "2039"]
[PlyCount "110"]
[EventDate "2019.12.08"]
[EventType "swiss"]
[EventCountry "ENG"]
[TimeControl "15+10"]
[WhiteClock "0:09:15"]
[BlackClock "0:01:18"]

1. e4 {[%emt 0:00:00]} c5 {[%emt 0:00:00]} 2. Nc3 {[%emt 0:00:00]} g6 {[%emt 0:00:00]} 3. f4 {[%emt 0:00:00]} Bg7 {[%emt 0:00:00]} 4. Nf3 {[%emt 0:00:00]} Nc6 {[%emt 0:00:00]} 5. Bc4 {[%emt 0:00:00]} e6 {[%emt 0:00:00]} 6. O-O {[%emt 0:00:00]} Nge7 {[%emt 0:00:00]} 7. Qe1 {[%emt 0:00:00]} a6 {[%emt 0:00:00]} 8. a4 {[%emt 0:00:00]} O-O {[%emt 0:00:00]} 9. d3 {[%emt 0:00:00]} d5 {[%emt 0:00:00]} 10. Ba2 {[%emt 0:00:00]} Nd4 {[%emt 0:00:00]} 11. Bb1 {[%emt 0:00:00]} Rb8 {[%emt 0:00:00]} 12. Ne2 {[%emt 0:00:00]} Nxf3+ {[%emt 0:00:00]} 13. Rxf3 {[%emt 0:00:00]} f5 {[%emt 0:00:00]} 14. e5 {[%emt 0:00:00]} d4 {[%emt 0:00:00]} 15. Bd2 {[%emt 0:00:00]} b6 {[%emt 0:00:00]} 16. Ba2 {[%emt 0:00:00]} Qd7 {[%emt 0:00:00]} 17. Qh4 {[%emt 0:00:00]} Bb7 {[%emt 0:00:00]} 18. Rf2 {[%emt 0:00:00]} Kf7 {[%emt 0:00:00]} 19. Qh3 {[%emt 0:00:00]} Bd5 {[%emt 0:00:00]} 20. Bxd5 {[%emt 0:00:00]} Nxd5 {[%emt 0:00:00]} 21. Kh1 {[%emt 0:00:00]} h5 {[%emt 0:00:00]} 22. Ng1 {[%emt 0:00:00]} Bh6 {[%emt 0:00:00]} 23. Qg3 {[%emt 0:00:00]} Kg7 {[%emt 0:00:00]} 24. Nh3 {[%emt 0:00:00]} Kh7 {[%emt 0:00:00]} 25. Ng5+ {[%emt 0:00:00]} Bxg5 {[%emt 0:00:00]} 26. Qxg5 {[%emt 0:00:00]} Qe7 {[%emt 0:00:00]} 27. Qg3 {[%emt 0:00:00]} Rbc8 {[%emt 0:00:00]} 28. Rd1 {[%emt 0:00:03]} Qd7 {[%emt 0:00:00]} 29. b3 {[%emt 0:00:26]} b5 {[%emt 0:00:00]} 30. axb5 {[%emt 0:00:02]} axb5 {[%emt 0:00:00]} 31. Ra1 {[%emt 0:00:03]} Ra8 {[%emt 0:00:00]} 32. Rff1 {[%emt 0:00:04]} b4 {[%emt 0:00:00]} 33. Rfd1 {[%emt 0:00:44]} Ra3 {[%emt 0:00:00]} 34. Rxa3 {[%emt 0:01:39]} bxa3 {[%emt 0:00:00]} 35. Ra1 {[%emt 0:00:01]} Ra8 {[%emt 0:00:00]} 36. Ra2 {[%emt 0:00:11]} Nb4 {[%emt 0:00:00]} 37. Bxb4 {[%emt 0:00:12]} cxb4 {[%emt 0:00:00]} 38. Kg1 {[%emt 0:00:23]} Ra7 {[%emt 0:00:00]} 39. Kf1 {[%emt 0:00:08]} Qd8 {[%emt 0:00:00]} 40. h4 {[%emt 0:00:04]} Rc7 {[%emt 0:00:00]} 41. Ke1 {[%emt 0:00:07]} Qd5 {[%emt 0:00:00]} 42. Kd1 {[%emt 0:00:36]} Rg7 {[%emt 0:00:00]} 43. Qf3 {[%emt 0:00:23]} Qxf3+ {[%emt 0:00:00]} 44. gxf3 {[%emt 0:00:01]} g5 {[%emt 0:00:00]} 45. hxg5 {[%emt 0:01:51]} Kg6 {[%emt 0:00:00]} 46. Ke2 {[%emt 0:00:11]} h4 {[%emt 0:00:00]} 47. Kf2 {[%emt 0:00:01]} Rh7 {[%emt 0:00:00]} 48. Kg2 {[%emt 0:00:04]} h3+ {[%emt 0:00:00]} 49. Kh2 {[%emt 0:00:01]} Rh4 {[%emt 0:00:00]} 50. Ra1 {[%emt 0:00:15]} Rxf4 {[%emt 0:00:00]} 51. Kxh3 {[%emt 0:00:26]} Rxf3+ {[%emt 0:00:00]} 52. Kg2 {[%emt 0:00:01]} Re3 {[%emt 0:00:00]} 53. Kf2 {[%emt 0:00:02]} Rxe5 {[%emt 0:00:00]} 54. Kf3 {[%emt 0:00:04]} Re3+ {[%emt 0:00:02]} 55. Kf4 {[%emt 0:00:04]} e5# {[%emt 0:00:08]} 0-1